bitfinex-derivatives/quotes_BTCF0:USTF0_20250325
["timestamp","ask_amount","ask_price","bid_price","bid_amount"]
[1742933500800,0.0565499,88533.0,88530.0,0.4201331]
[1742933501001,0.1694898,88533.0,88532.0,0.4737399]
[1742933501189,0.1694898,88533.0,88532.0,0.7144999]
[1742933501389,0.1694898,88533.0,88532.0,2.4915999]
[1742933502600,0.1694898,88533.0,88532.0,0.9915999]
[1742933502991,0.1694898,88533.0,88532.0,2.4915999]
[1742933503396,0.1694898,88533.0,88532.0,0.9915999]
[1742933503801,0.1694898,88533.0,88532.0,1.1097599]
[1742933504002,0.1694898,88533.0,88532.0,2.6097599]
[1742933504203,0.1694898,88533.0,88532.0,2.4915999]
[1742933504498,0.1694898,88533.0,88532.0,0.87866]
[1742933505002,0.0004,88536.0,88532.0,0.87866]
[1742933505205,0.1129271,88542.0,88541.0,0.0564635]
[1742933505507,0.11352711,88542.0,88541.0,0.9165635]
[1742933505703,0.11352711,88542.0,88541.0,1.0359635]
[1742933506297,0.11307535,88542.0,88541.0,1.0359635]
[1742933506506,0.11247534,88542.0,88541.0,1.0359635]
[1742933506727,0.18735949,88557.0,88548.0,0.0564594]
[1742933506910,0.1885995,88557.0,88556.0,0.3608]
[1742933507201,0.18735949,88557.0,88556.0,0.36204]
[1742933507409,0.1129233,88545.0,88544.0,0.00016945]
[1742933507702,0.11380331,88545.0,88544.0,0.00104945]
[1742933508998,0.11380331,88545.0,88544.0,0.24647405]
[1742933509194,0.11380331,88545.0,88544.0,0.36527405]
[1742933509399,0.11335164,88545.0,88544.0,0.36527405]
[1742933509997,0.11335164,88545.0,88544.0,0.25234945]
[1742933510211,0.11335164,88545.0,88544.0,0.36527405]
[1742933510797,0.11335164,88545.0,88544.0,0.25234945]
[1742933510994,0.11335164,88545.0,88544.0,0.00104945]
[1742933512093,0.11335164,88545.0,88544.0,0.00064945]
[1742933512293,0.112945,88528.0,88520.0,0.3608]
[1742933512498,0.11354501,88528.0,88527.0,0.02476187]
[1742933512902,0.11354501,88528.0,88527.0,0.00943906]
[1742933513201,0.11354501,88528.0,88527.0,0.00883906]
[1742933514304,0.11354501,88528.0,88527.0,0.00943906]
[1742933514503,0.11309325,88528.0,88527.0,0.00943906]
[1742933514694,0.11309325,88528.0,88527.0,0.02486722]
[1742933515094,0.11309325,88528.0,88527.0,0.25625352]
[1742933516602,0.11309325,88528.0,88527.0,0.14330722]
[1742933516802,0.11309325,88528.0,88527.0,0.25625352]
[1742933517009,0.11309325,88528.0,88527.0,2.01555352]
[1742933517203,0.11249324,88528.0,88527.0,2.01555352]
[1742933518003,0.2430436,88530.0,88529.0,0.1129437]
[1742933518004,0.1301,88530.0,88529.0,0.1129437]
[1742933518200,0.0565506,88532.0,88531.0,0.1129412]
[1742933518402,0.1130199,88532.0,88531.0,0.7443812]
[1742933518703,0.1130199,88532.0,88531.0,1.86144]
[1742933519205,0.1129399,88532.0,88531.0,2.1100812]
[1742933519412,0.2396399,88532.0,88531.0,2.1100812]
[1742933519709,0.2396399,88532.0,88531.0,2.2422812]
[1742933520315,0.2396399,88532.0,88531.0,2.1100812]
[1742933520615,0.2396399,88532.0,88531.0,1.99714]
[1742933520805,0.2396399,88532.0,88531.0,2.1100812]
[1742933521313,0.2396399,88532.0,88531.0,1.86144]
[1742933521609,0.2396399,88532.0,88531.0,1.9743812]
[1742933521809,0.2396399,88532.0,88531.0,0.36144]
[1742933522010,0.24023991,88532.0,88531.0,0.00064]
[1742933523115,0.37143991,88532.0,88531.0,0.00064]
[1742933524415,0.0564738,88526.0,88519.0,0.00016945]
[1742933524716,0.1129795,88501.0,88497.0,0.3608]
[1742933524910,0.1129795,88501.0,88500.0,0.47584915]
[1742933525109,0.1136995,88501.0,88500.0,0.47584915]
[1742933525516,0.1129858,88496.0,88495.0,0.361252]
[1742933525717,0.1129858,88496.0,88490.0,0.00169497]
[1742933525718,0.1129922,88491.0,88490.0,0.00169497]
[1742933525915,0.11411221,88491.0,88490.0,0.00169497]
[1742933526217,0.11411221,88491.0,88490.0,0.26743497]
[1742933526713,0.11411221,88491.0,88490.0,0.00233497]
[1742933526917,0.11411221,88491.0,88490.0,0.00169497]
[1742933528009,0.1129948,88489.0,88488.0,0.00830353]
[1742933528209,0.1129961,88488.0,88487.0,0.01571984]
[1742933528509,0.2466961,88488.0,88487.0,0.01567659]
[1742933528715,0.2466961,88488.0,88487.0,0.00016945]
[1742933528910,0.2470961,88488.0,88487.0,0.00076945]
[1742933529115,0.2482561,88488.0,88487.0,0.00076945]
[1742933529305,0.3744961,88488.0,88487.0,0.00016945]
[1742933532721,0.1130216,88468.0,88467.0,0.13638118]
[1742933532924,0.4738216,88468.0,88467.0,0.09283518]
[1742933533218,0.1130267,88464.0,88463.0,6e-08]
[1742933533428,0.1130472,88448.0,88447.0,9e-08]
[1742933533623,0.0565229,88449.0,88436.0,0.3608]
[1742933533925,0.1130612,88437.0,88436.0,0.36096955]
[1742933534124,0.1130612,88437.0,88436.0,0.00132955]
[1742933534431,0.11418121,88437.0,88436.0,0.00132955]
[1742933534923,0.11418121,88437.0,88436.0,5e-08]
[1742933535121,0.1130702,88430.0,88429.0,0.39905733]
[1742933535315,0.1130702,88430.0,88429.0,0.24045553]
[1742933535514,0.1145502,88430.0,88429.0,0.12943933]
[1742933535716,0.1145502,88430.0,88429.0,3e-08]
[1742933535913,0.1130727,88428.0,88427.0,0.6798566]
[1742933536115,0.11479271,88428.0,88427.0,0.6798566]
[1742933536630,0.11479271,88428.0,88427.0,0.6794566]
[1742933538319,0.1130804,88422.0,88421.0,0.00016955]
[1742933538520,0.47552041,88422.0,88421.0,0.00016955]
[1742933539116,0.47506808,88422.0,88421.0,0.00016955]
[1742933540226,0.11426808,88422.0,88421.0,0.00016955]
[1742933540814,0.47506808,88422.0,88421.0,1.50016955]
[1742933542821,0.47506808,88422.0,88421.0,0.00016955]
[1742933543023,0.1130881,88416.0,88410.0,0.01538204]
[1742933543224,0.11472811,88416.0,88410.0,0.01538204]
[1742933543427,0.11472811,88416.0,88411.0,1.5]
[1742933544825,0.11472811,88416.0,88410.0,0.01538204]
[1742933545335,0.11472811,88416.0,88411.0,1.5]
[1742933545926,0.11472811,88416.0,88408.0,0.11688]
[1742933546132,0.11472811,88416.0,88410.0,0.01515952]
[1742933546435,0.11472811,88416.0,88411.0,1.5]
[1742933546631,0.11472811,88416.0,88408.0,0.11688]
[1742933546832,0.11472811,88416.0,88407.0,0.27696965]
[1742933547033,0.11472811,88416.0,88415.0,1e-08]
[1742933547243,0.11472811,88416.0,88400.0,0.21648]
[1742933547536,0.11472811,88416.0,88375.0,0.00831452]
[1742933547537,0.7216,88403.0,88375.0,0.00831452]
[1742933547732,0.1131495,88368.0,88367.0,0.01578543]
[1742933547936,0.47566951,88368.0,88367.0,0.01578543]
[1742933548132,0.0565702,88375.0,88367.0,0.02409232]
[1742933548133,0.3608,88375.0,88367.0,0.02409232]
[1742933548330,0.00112001,88375.0,88367.0,0.28105266]
[1742933548524,0.00224002,88375.0,88367.0,0.28105266]
[1742933548729,0.00224002,88375.0,88374.0,0.1131418]
[1742933548730,0.00112001,88375.0,88374.0,0.1131418]
[1742933548928,0.00112001,88375.0,88367.0,0.28972337]
[1742933548929,0.1131495,88368.0,88367.0,0.02497744]
[1742933549130,0.11426951,88368.0,88367.0,0.04561744]
[1742933550636,0.11426951,88368.0,88367.0,1.54561744]
[1742933550834,0.3608,88387.0,88367.0,1.65876824]
[1742933551032,0.3608,88387.0,88378.0,0.3608]
[1742933551033,0.0008,88387.0,88378.0,0.3608]
[1742933551226,0.1131252,88387.0,88386.0,0.3608]
[1742933551428,0.1138452,88387.0,88386.0,0.36144]
[1742933552542,0.1138452,88387.0,88386.0,1.86144]
[1742933552741,0.05656,88391.0,88386.0,1.86144]
[1742933552928,0.1131239,88388.0,88387.0,0.2763]
[1742933553128,0.05656,88391.0,88387.0,0.27694]
[1742933553431,0.0004,88392.0,88391.0,0.1131201]
[1742933553635,0.1135188,88392.0,88391.0,0.3137601]
[1742933554144,0.4743188,88392.0,88391.0,0.00064]
[1742933554443,0.4743188,88392.0,88381.0,0.2763]
[1742933554444,0.113129,88384.0,88381.0,0.2763]
[1742933554646,0.113769,88384.0,88383.0,0.00117257]
[1742933555237,0.387069,88384.0,88383.0,0.00117257]
[1742933556338,0.113769,88384.0,88383.0,0.00117257]
[1742933556727,0.113809,88384.0,88383.0,0.00117257]
[1742933556940,0.113809,88384.0,88383.0,1.50117257]
[1742933557142,0.113129,88384.0,88383.0,1.62871345]
[1742933557443,0.113129,88384.0,88383.0,1.50117257]
[1742933558142,0.113129,88384.0,88383.0,1.51555771]
[1742933558832,0.113129,88384.0,88383.0,1.51555799]
[1742933559039,0.0565633,88386.0,88383.0,1.68525289]
[1742933559340,0.056642,88388.0,88387.0,0.1131252]
[1742933559341,0.1132046,88388.0,88387.0,0.1131252]
[1742933559549,0.1138446,88388.0,88387.0,0.12819062]
[1742933559931,0.1138446,88388.0,88387.0,0.29056542]
[1742933560545,0.1138446,88388.0,88387.0,0.51386542]
[1742933560742,0.1132046,88388.0,88387.0,0.00068]
[1742933560945,0.113129,88384.0,88383.0,0.00045257]
[1742933561244,0.113769,88384.0,88383.0,0.01544125]
[1742933561442,0.113129,88384.0,88383.0,0.01544125]
[1742933561946,0.113769,88384.0,88383.0,0.01544125]
[1742933562647,0.113769,88384.0,88383.0,0.12857155]
[1742933563342,0.113769,88384.0,88383.0,1.62865996]
[1742933563640,0.250029,88384.0,88383.0,1.76625996]
[1742933563843,0.113129,88384.0,88383.0,1.89955996]
[1742933564237,0.253929,88384.0,88383.0,1.78642966]
[1742933565349,0.253929,88384.0,88383.0,0.28642966]
[1742933565642,0.254569,88384.0,88383.0,0.28642966]
[1742933566146,0.386729,88384.0,88383.0,0.01552966]
[1742933566339,0.387369,88384.0,88383.0,0.01552966]
[1742933567140,0.387369,88384.0,88383.0,0.00109257]
[1742933570950,0.387369,88384.0,88383.0,0.15954952]
[1742933571145,0.387369,88384.0,88383.0,0.43754952]
[1742933571648,0.387369,88384.0,88383.0,0.27909257]
[1742933573136,0.387369,88384.0,88383.0,0.00109257]
[1742933573851,0.387369,88384.0,88383.0,1.50109257]
[1742933574041,0.386729,88384.0,88383.0,1.50109257]
[1742933574442,0.386729,88384.0,88383.0,1.61422287]
[1742933575049,0.386729,88384.0,88383.0,1.88722287]
[1742933578152,0.386729,88384.0,88383.0,1.77409257]
[1742933578347,0.386729,88384.0,88383.0,1.50109257]
[1742933578552,0.387369,88384.0,88383.0,1.50109257]
[1742933578849,0.386729,88384.0,88383.0,1.50109257]
[1742933579749,0.387369,88384.0,88383.0,1.50109257]
[1742933579952,0.387369,88384.0,88383.0,1.61422287]
[1742933580148,0.386729,88384.0,88383.0,1.50109257]
[1742933581239,0.386729,88384.0,88383.0,1.54654066]
[1742933582053,0.525429,88384.0,88383.0,1.54654066]
[1742933582237,0.526069,88384.0,88383.0,1.54654066]
[1742933582440,0.526069,88384.0,88383.0,1.50109257]
[1742933582853,0.526069,88384.0,88383.0,0.00109257]
[1742933583049,0.526069,88384.0,88383.0,0.04655885]
[1742933584053,0.526069,88384.0,88383.0,0.00109257]
[1742933584754,0.1131341,88380.0,88379.0,0.3608]
[1742933584944,0.1131495,88368.0,88367.0,0.34074803]
[1742933585143,0.1131495,88368.0,88367.0,0.15657704]
[1742933585144,0.4739495,88368.0,88367.0,0.15657704]
[1742933585360,0.4746695,88368.0,88367.0,4e-08]
[1742933585558,0.6099695,88368.0,88367.0,4e-08]
[1742933585756,0.6099695,88368.0,88360.0,0.39680504]
[1742933585757,0.1131585,88361.0,88360.0,0.39680504]
[1742933585953,0.11435851,88361.0,88360.0,0.39744504]
[1742933586153,0.24965851,88361.0,88360.0,0.39744504]
[1742933586859,0.24965851,88361.0,88360.0,0.41235889]
[1742933587251,0.24965851,88361.0,88360.0,0.39704504]
[1742933588057,0.53455851,88361.0,88360.0,0.39704504]
[1742933588259,0.53455851,88361.0,88360.0,0.41161495]
[1742933588757,0.39125851,88361.0,88360.0,0.54751495]
[1742933589461,0.39125851,88361.0,88360.0,0.67951495]
[1742933589857,0.39080585,88361.0,88360.0,2.17951495]
[1742933590056,0.39080585,88361.0,88360.0,1.78310991]
[1742933592453,0.39080585,88361.0,88360.0,1.78270991]
[1742933592652,0.39080585,88361.0,88360.0,0.01480991]
[1742933594665,0.39080585,88361.0,88360.0,0.01592991]
[1742933594863,0.39035319,88361.0,88360.0,0.01592991]
[1742933597371,0.39035319,88361.0,88360.0,0.01552991]
[1742933598374,0.39035319,88361.0,88360.0,0.00136]
[1742933598668,0.1131597,88360.0,88359.0,0.00011324]
[1742933598873,0.25495971,88360.0,88359.0,0.00011324]
[1742933599071,0.53865971,88360.0,88359.0,0.00011324]
[1742933599267,0.113161,88359.0,88351.0,0.00045274]
[1742933599468,0.47397,88352.0,88351.0,0.00045274]
[1742933599673,0.47577001,88352.0,88351.0,0.00045274]
[1742933599872,0.47531735,88352.0,88351.0,4e-08]
[1742933600077,0.1131841,88341.0,88340.0,0.268937]
[1742933600266,0.47578411,88341.0,88340.0,0.268857]
[1742933600572,0.89948411,88341.0,88340.0,0.268937]
[1742933600776,0.89948411,88341.0,88340.0,0.268857]
[1742933602964,0.89948411,88341.0,88340.0,0.27714039]
[1742933603571,0.75948411,88341.0,88340.0,0.29182589]
[1742933603771,0.39868411,88341.0,88340.0,0.29182589]
[1742933604172,0.39868411,88341.0,88340.0,0.02296889]
[1742933604371,0.1697832,88338.0,88337.0,0.1131889]
[1742933604574,0.17158321,88338.0,88337.0,0.4154889]
[1742933605167,0.17158321,88338.0,88337.0,1.9154889]
[1742933605368,0.1697832,88338.0,88337.0,1.9154889]
[1742933605668,0.056594,88338.0,88337.0,1.9154889]
[1742933606070,0.056593,88340.0,88339.0,0.1131867]
[1742933606570,0.05835301,88340.0,88339.0,0.2554867]
[1742933606772,0.19005301,88340.0,88339.0,1.7554867]
[1742933606967,0.188293,88340.0,88339.0,1.5]
[1742933607275,0.1131879,88338.0,88337.0,0.12346298]
[1742933607471,0.11498791,88338.0,88337.0,0.15488]
[1742933607673,0.39218791,88338.0,88337.0,0.15488]
[1742933607868,0.39210791,88338.0,88337.0,0.16920382]
[1742933608074,0.39210791,88338.0,88337.0,0.28239302]
[1742933608273,0.39210791,88338.0,88337.0,0.41969302]
[1742933608469,0.00172001,88338.0,88337.0,0.42817161]
[1742933608682,0.1131879,88338.0,88337.0,0.31498241]
[1742933608879,0.1131879,88338.0,88337.0,0.48476151]
[1742933609181,0.00172001,88338.0,88337.0,1.98476151]
[1742933609385,0.0004,88344.0,88343.0,0.1131815]
[1742933609682,0.0004,88344.0,88343.0,1.0018815]
[1742933609983,0.0004,88344.0,88343.0,2.5018815]
[1742933613377,8e-05,88347.0,88346.0,0.1131777]
[1742933613577,8e-05,88347.0,88346.0,0.3737777]
[1742933613871,0.00016975,88349.0,88348.0,0.1131751]
[1742933614191,0.1131675,88354.0,88353.0,0.1131687]
[1742933614388,0.12329436,88354.0,88353.0,0.7545687]
[1742933614583,0.12329436,88354.0,88353.0,0.8984687]
[1742933614987,0.0566459,88382.0,88359.0,0.113161]
[1742933615177,0.1131596,88361.0,88359.0,0.468321]
[1742933615488,0.1135597,88360.0,88359.0,0.468321]
[1742933615684,0.1143597,88360.0,88359.0,0.753821]
[1742933615880,0.1143597,88360.0,88359.0,2.253821]
[1742933616080,0.1135597,88360.0,88359.0,2.253821]
[1742933616781,0.0004,88360.0,88359.0,2.253821]
[1742933616985,8e-05,88363.0,88359.0,2.1972399]
[1742933617288,8e-05,88363.0,88362.0,0.5739572]
[1742933617588,8e-05,88363.0,88362.0,0.8045572]
[1742933618279,0.00016975,88371.0,88368.0,0.1131495]
[1742933618479,0.10217556,88369.0,88368.0,0.3537495]
[1742933619077,0.0008,88369.0,88368.0,2.1282495]
[1742933619273,0.00016975,88371.0,88370.0,0.1131469]
[1742933619578,0.00016975,88371.0,88370.0,0.4881069]
[1742933620080,0.00096975,88371.0,88370.0,0.50634509]
[1742933620393,0.00096975,88371.0,88370.0,1.89198509]
[1742933620591,0.1697044,88380.0,88377.0,0.0565686]
[1742933620784,0.3096018,88380.0,88379.0,0.3608]
[1742933621084,0.3096018,88380.0,88379.0,0.6314]
[1742933621085,0.30974924,88380.0,88379.0,0.6314]
[1742933621478,0.67054924,88380.0,88379.0,0.2706]
[1742933622181,0.30974924,88380.0,88379.0,0.2706]
[1742933623093,0.30974924,88380.0,88379.0,0.3837241]
[1742933623279,0.30974924,88380.0,88379.0,0.2706]
[1742933623678,0.30974924,88380.0,88379.0,0.2702]
[1742933626287,0.30929667,88380.0,88379.0,0.2702]
[1742933626986,0.31811189,88380.0,88379.0,0.2702]
[1742933628093,0.14050001,88380.0,88379.0,0.3833241]
[1742933628492,0.1399,88380.0,88379.0,0.3833241]
[1742933628688,0.1399,88380.0,88379.0,0.6569241]
[1742933628883,0.14058,88380.0,88379.0,0.6569241]
[1742933629289,0.1399,88380.0,88379.0,0.6565241]
[1742933629495,0.00016975,88388.0,88382.0,0.1131203]
[1742933629691,0.00016975,88388.0,88387.0,0.4739139]
[1742933629884,0.00092975,88388.0,88387.0,1.0281939]
[1742933630089,0.1331,88403.0,88397.0,0.1131011]
[1742933630293,0.10213556,88398.0,88397.0,0.8183411]
[1742933630490,0.10213556,88398.0,88397.0,0.8267028]
[1742933631386,0.00076,88398.0,88397.0,0.8267028]
[1742933631591,0.1130978,88400.0,88399.0,0.1130972]
[1742933631890,0.1138978,88400.0,88399.0,0.6540372]
[1742933632092,0.1138978,88400.0,88399.0,0.65448969]
[1742933632285,0.2562978,88400.0,88399.0,0.65448969]
[1742933633292,0.3882978,88400.0,88399.0,0.65448969]
[1742933633887,0.3882978,88400.0,88399.0,0.67286731]
[1742933640300,0.3882978,88400.0,88399.0,0.01837762]
[1742933640600,0.1131177,88384.0,88372.0,0.3608]
[1742933640802,0.1131305,88374.0,88373.0,0.0648278]
[1742933640999,0.1131523,88357.0,88352.0,8e-05]
[1742933641203,0.1131792,88336.0,88335.0,2e-08]
[1742933641396,0.1132048,88316.0,88315.0,0.82438764]
[1742933641591,0.1127519,88316.0,88315.0,0.82498764]
[1742933641901,0.1127519,88316.0,88307.0,0.81931253]
[1742933641902,0.1132151,88308.0,88307.0,0.37929736]
[1742933642207,0.1132151,88308.0,88273.0,0.114]
[1742933642208,0.1132407,88288.0,88287.0,0.00045307]
[1742933642499,0.3608,88303.0,88287.0,0.26045307]
[1742933642696,0.3608,88319.0,88300.0,0.0566122]
[1742933643006,0.3608,88327.0,88311.0,0.1132067]
[1742933643301,0.1132111,88312.0,88311.0,0.3698112]
[1742933643496,0.1132111,88312.0,88311.0,0.2566045]
[1742933643696,0.1132111,88312.0,88311.0,0.2]
[1742933643900,0.00016985,88318.0,88315.0,0.1132044]
[1742933644199,0.1132048,88316.0,88315.0,0.3432039]
[1742933644402,0.1132048,88316.0,88315.0,1.73]
[1742933645095,0.1132048,88316.0,88315.0,1.7296]
[1742933645294,0.00016985,88318.0,88317.0,0.1132035]
[1742933645495,0.11337205,88318.0,88317.0,0.3832035]
[1742933645698,0.11337205,88318.0,88317.0,0.27]
[1742933647099,0.11337205,88318.0,88317.0,0.27064]
[1742933647401,0.11337205,88318.0,88317.0,0.7446435]
[1742933647402,0.00016985,88318.0,88317.0,0.7446435]
[1742933647702,0.13494616,88329.0,88327.0,0.1131907]
[1742933647899,0.13494616,88329.0,88327.0,0.8683107]
[1742933648092,0.0565771,88356.0,88335.0,0.1131805]
[1742933648296,0.20250671,88344.0,88343.0,0.1127702]
[1742933648490,0.20242671,88344.0,88343.0,0.8579702]
[1742933648690,0.20242671,88344.0,88343.0,2.3585702]
[1742933648896,0.00016985,88352.0,88351.0,0.11316]
[1742933649104,0.11332855,88352.0,88351.0,0.75396]
[1742933649314,0.11332855,88352.0,88351.0,0.6408]
[1742933649602,0.11332855,88352.0,88351.0,2.26237759]
[1742933650300,0.11332855,88352.0,88351.0,0.40157759]
[1742933652900,0.11332855,88352.0,88351.0,0.51569759]
[1742933653208,0.00016985,88352.0,88351.0,0.51569759]
[1742933653900,0.00016985,88352.0,88351.0,0.51629759]
[1742933654296,0.00096985,88352.0,88351.0,0.51629759]
[1742933654799,0.00016985,88352.0,88351.0,0.51629759]
[1742933655000,0.11412855,88352.0,88351.0,0.51629759]
[1742933655309,0.11412855,88352.0,88351.0,0.40313759]
[1742933655500,0.11412855,88352.0,88351.0,0.28901759]
[1742933655903,0.11412855,88352.0,88351.0,0.40217759]
[1742933656101,0.11412855,88352.0,88351.0,0.54607759]
[1742933656900,0.00096985,88352.0,88351.0,0.54607759]
[1742933657804,0.00016985,88352.0,88351.0,0.54607759]
[1742933657995,0.00016985,88352.0,88351.0,1.00687759]
[1742933658195,0.1135493,88360.0,88351.0,1.00687759]
[1742933658196,0.1131515,88358.0,88357.0,0.1131497]
[1742933658401,0.1131515,88358.0,88357.0,0.3937897]
[1742933659301,0.0569742,88360.0,88357.0,0.3937897]
[1742933659302,0.113551,88360.0,88359.0,0.1131497]
[1742933659606,0.113551,88360.0,88359.0,0.3437497]
[1742933660011,0.113551,88360.0,88359.0,0.63830398]
[1742933660012,0.114351,88360.0,88359.0,0.63830398]
[1742933660211,0.1143484,88360.0,88359.0,0.63830398]
[1742933660513,0.0012,88360.0,88359.0,0.63830398]
[1742933660706,8e-05,88363.0,88362.0,0.1131459]
[1742933660912,8e-05,88382.0,88368.0,0.1131382]
[1742933660913,0.0565611,88381.0,88368.0,0.1131382]
[1742933661106,0.00088,88369.0,88368.0,0.3737382]
[1742933661301,0.3608,88380.0,88368.0,0.2606]
[1742933661507,0.1131369,88369.0,88368.0,0.4875382]
[1742933661804,0.1139369,88369.0,88368.0,0.3744]
[1742933662010,0.2495369,88369.0,88368.0,0.3744]
[1742933662203,0.2495369,88369.0,88368.0,0.7643382]
[1742933662603,0.0008,88369.0,88368.0,0.7643382]
[1742933663008,0.2487293,88375.0,88374.0,0.1131305]
[1742933663202,0.1135279,88376.0,88375.0,0.1131292]
[1742933663411,0.1143279,88376.0,88375.0,0.6305292]
[1742933664006,0.2499279,88376.0,88375.0,0.6305292]
[1742933668913,0.1368,88376.0,88375.0,0.6305292]
[1742933669216,0.141,88386.0,88383.0,0.113119]
[1742933669412,0.00060001,88384.0,88383.0,0.353719]
[1742933669617,0.11371771,88384.0,88383.0,0.2406]
[1742933669915,0.12265191,88384.0,88383.0,0.00105257]
[1742933670107,0.12265191,88384.0,88383.0,0.15375257]
[1742933670309,0.26365191,88384.0,88383.0,0.15375257]
[1742933670911,0.26365191,88384.0,88383.0,0.26687157]
[1742933671117,0.26365191,88384.0,88383.0,0.15375257]
[1742933671319,0.26365191,88384.0,88383.0,0.26687157]
[1742933672019,0.26365191,88384.0,88381.0,0.1131202]
[1742933672020,0.32021141,88384.0,88381.0,0.1131202]
[1742933672220,0.0089342,88383.0,88382.0,0.1478]
[1742933672421,0.0843342,88383.0,88382.0,0.14844]
[1742933672610,0.2271942,88383.0,88382.0,0.14844]
[1742933672811,0.1517942,88383.0,88382.0,0.14844]
[1742933673122,0.2649132,88383.0,88382.0,0.34598004]
[1742933673322,0.2649132,88383.0,88382.0,0.32853987]
[1742933673521,0.1517942,88383.0,88382.0,0.32853987]
[1742933673714,0.0096942,88383.0,88382.0,0.32853987]
[1742933673913,0.4836132,88383.0,88382.0,0.32853987]
[1742933674113,0.3704942,88383.0,88382.0,0.32853987]
[1742933674322,0.4836132,88383.0,88382.0,1.82853987]
[1742933674619,0.4836132,88383.0,88382.0,0.34668866]
[1742933674821,0.4836132,88383.0,88382.0,0.28914879]
[1742933675022,0.4836132,88383.0,88382.0,0.40226909]
[1742933675211,0.4836132,88383.0,88382.0,0.51562909]
[1742933675520,0.6286132,88383.0,88382.0,0.51562909]
[1742933675721,0.6336132,88383.0,88382.0,0.51662909]
[1742933675916,0.2728132,88383.0,88382.0,0.51662909]
[1742933676420,0.2778132,88383.0,88382.0,0.66352909]
[1742933676822,0.27776775,88383.0,88382.0,0.66352909]
[1742933677222,0.27731518,88383.0,88382.0,0.80772909]
[1742933677422,0.27739507,88383.0,88382.0,0.80772909]
[1742933678124,0.27738414,88383.0,88382.0,0.80772909]
[1742933678420,0.27738414,88383.0,88382.0,0.43534879]
[1742933678625,0.41798414,88383.0,88382.0,0.43534879]
[1742933678826,0.41794819,88383.0,88382.0,0.29114879]
[1742933679415,0.42573124,88383.0,88382.0,0.2726]
[1742933679611,0.78653124,88383.0,88382.0,0.2722]
[1742933680523,0.78653124,88383.0,88382.0,0.0026]
[1742933680826,0.78653124,88383.0,88382.0,0.002]
[1742933681028,0.78649104,88383.0,88382.0,0.002]
[1742933681415,0.78649197,88383.0,88382.0,0.002]
[1742933681621,0.84657791,88383.0,88382.0,0.002]
[1742933682222,0.84612534,88383.0,88382.0,0.002]
[1742933682426,0.84688534,88383.0,88382.0,0.002]
[1742933684127,0.84688534,88383.0,88382.0,0.0026]
[1742933684331,1.07898432,88383.0,88382.0,0.0026]
[1742933684528,1.07898432,88383.0,88382.0,0.002]
[1742933684824,1.07898432,88383.0,88382.0,0.0016]
[1742933685033,1.07898432,88383.0,88367.0,0.00045266]
[1742933685034,0.1131356,88370.0,88368.0,0.1507]
[1742933685323,0.48349809,88370.0,88369.0,0.1441]
[1742933685524,0.77089809,88370.0,88369.0,0.1441]
[1742933685725,0.77868114,88370.0,88369.0,0.1441]
[1742933685926,0.12680112,88370.0,88369.0,0.15864732]
[1742933686227,0.1131168,88385.0,88369.0,1.01635147]
[1742933686425,0.003,88370.0,88369.0,0.83418422]
[1742933686625,0.1131237,88380.0,88377.0,0.0565633]
[1742933686817,0.1138037,88380.0,88379.0,0.4739241]
[1742933687127,0.1131237,88380.0,88379.0,0.79990285]
[1742933687333,0.11267113,88380.0,88379.0,1.08970285]
[1742933687628,0.11267113,88380.0,88379.0,1.0444041]
[1742933687828,0.11267113,88380.0,88379.0,1.04508]
[1742933688021,0.11335113,88380.0,88379.0,1.04508]
[1742933688531,0.11735113,88380.0,88379.0,1.1582041]
[1742933689629,0.11935113,88380.0,88379.0,1.1578041]
[1742933690420,0.11867113,88380.0,88379.0,1.1578041]
[1742933690627,0.11939113,88380.0,88379.0,1.1578041]
[1742933690826,0.00672,88380.0,88379.0,1.1578041]
[1742933691028,0.1696748,88389.0,88388.0,0.0565556]
[1742933691328,0.17063481,88389.0,88388.0,0.3075156]
[1742933691720,0.17063481,88389.0,88388.0,0.6125156]
[1742933692421,0.17463481,88389.0,88388.0,0.6125156]
[1742933693231,0.11807131,88389.0,88388.0,0.9733156]
[1742933694729,0.07912957,88389.0,88388.0,0.9733156]
[1742933695931,0.16929161,88391.0,88390.0,0.11311]
[1742933696128,0.17069162,88391.0,88390.0,0.45787]
[1742933696329,0.24281905,88391.0,88390.0,0.45787]
[1742933696834,0.20323779,88391.0,88390.0,0.45787]
[1742933697134,0.16365653,88391.0,88390.0,0.75427]
[1742933697534,0.12407527,88391.0,88390.0,0.75427]
[1742933697721,0.1131087,88391.0,88390.0,0.75427]
[1742933697922,0.07352744,88391.0,88390.0,0.75427]
[1742933698435,0.1131087,88391.0,88390.0,0.7542687]
[1742933699436,8e-05,88403.0,88396.0,0.0565508]
[1742933699737,8e-05,88403.0,88399.0,0.4738985]
[1742933699935,0.1130937,88403.0,88399.0,0.7052585]
[1742933700335,0.00048,88408.0,88407.0,0.1130883]
[1742933700541,8e-05,88409.0,88408.0,0.113087]
[1742933700726,0.20317381,88410.0,88409.0,0.1130857]
[1742933700928,0.20317381,88410.0,88409.0,1.8649257]
[1742933701132,0.20317381,88410.0,88409.0,2.1602257]
[1742933701337,0.31625821,88410.0,88409.0,2.1602257]
[1742933701530,0.20317381,88410.0,88409.0,2.1602257]
[1742933701731,0.1130583,88431.0,88415.0,0.0565387]
[1742933701932,0.113467,88424.0,88423.0,0.1130678]
[1742933702229,0.1700005,88424.0,88423.0,0.4681478]
[1742933702423,0.1700005,88424.0,88423.0,0.24176]
[1742933703239,0.1700005,88424.0,88423.0,0.3548278]
[1742933703441,0.1700005,88424.0,88423.0,0.24176]
[1742933703626,0.1700005,88424.0,88423.0,0.3548278]
[1742933704031,0.1700005,88424.0,88423.0,0.3544278]
[1742933704335,0.1700005,88424.0,88423.0,0.6709278]
[1742933705837,0.0004,88424.0,88423.0,0.6709278]
[1742933706841,8e-05,88433.0,88432.0,0.1130563]
[1742933707040,0.1449,88450.0,88439.0,0.1130474]
[1742933707239,0.1449,88450.0,88439.0,0.3646874]
[1742933707544,0.12226193,88440.0,88439.0,0.00164]
[1742933708337,0.43306193,88440.0,88439.0,0.00164]
[1742933708737,0.28286193,88440.0,88439.0,0.00164]
[1742933708939,0.161,88440.0,88439.0,0.3546874]
[1742933709140,0.0004,88440.0,88439.0,0.3546874]
[1742933709337,0.0004,88440.0,88439.0,0.6612874]
[1742933709547,0.1134461,88440.0,88439.0,0.54824]
[1742933709946,0.1134461,88440.0,88439.0,0.6612874]
[1742933710543,0.056512,88458.0,88446.0,0.1130362]
[1742933710850,0.1130368,88448.0,88447.0,0.5333571]
[1742933711036,0.1130368,88448.0,88447.0,1.1257971]
[1742933711242,8e-05,88451.0,88450.0,0.1130333]
[1742933711442,0.113032,88451.0,88450.0,0.65717813]